[Event "Late-Titled-Tuesday-Blitz-January-16-2024"]
[Site "Chess.com"]
[Date "2024.01.16"]
[Round "8"]
[White "Maxfan2008"]
[Black "varunkrishnanchess"]
[Result "0-1"]
[WhiteElo "2518"]
[BlackElo "2639"]
[TimeControl "180+1"]
[EndTime "15:29:37 PST"]
[Termination "varunkrishnanchess won by resignation"]

1. e4 {[%clk 0:02:11.7]} 1... e5 {[%clk 0:02:55]} 2. Nf3 {[%clk 0:02:11.4]} 2...
Nc6 {[%clk 0:02:54.3]} 3. d4 {[%clk 0:02:11.7]} 3... exd4 {[%clk 0:02:53.6]} 4.
c3 {[%clk 0:02:12.4]} 4... dxc3 {[%clk 0:02:53]} 5. Nxc3 {[%clk 0:02:13.3]} 5...
Bb4 {[%clk 0:02:44.8]} 6. Bc4 {[%clk 0:02:13.8]} 6... d6 {[%clk 0:02:42]} 7. Qb3
{[%clk 0:02:13]} 7... Qe7 {[%clk 0:02:29.7]} 8. O-O {[%clk 0:02:12.6]} 8... Bxc3
{[%clk 0:02:22.2]} 9. bxc3 {[%clk 0:02:13.5]} 9... Nf6 {[%clk 0:02:21.3]} 10. e5
{[%clk 0:02:13.8]} 10... Nxe5 {[%clk 0:02:12]} 11. Nxe5 {[%clk 0:02:13.7]} 11...
dxe5 {[%clk 0:02:12.1]} 12. Ba3 {[%clk 0:02:13.1]} 12... c5 {[%clk 0:02:12.5]}
13. Qb5+ {[%clk 0:02:08.4]} 13... Nd7 {[%clk 0:02:07.8]} 14. Rad1 {[%clk
0:02:03.3]} 14... O-O {[%clk 0:02:01.2]} 15. Rfe1 {[%clk 0:01:53.9]} 15... a6
{[%clk 0:01:57.4]} 16. Qb1 {[%clk 0:01:40.7]} 16... b5 {[%clk 0:01:51.6]} 17.
Bd5 {[%clk 0:01:40.5]} 17... Rb8 {[%clk 0:01:51.2]} 18. c4 {[%clk 0:01:11.7]}
18... Bb7 {[%clk 0:01:39.3]} 19. cxb5 {[%clk 0:01:04.4]} 19... axb5 {[%clk
0:01:29]} 20. Bb2 {[%clk 0:00:36.4]} 20... c4 {[%clk 0:00:38.5]} 21. Re3 {[%clk
0:00:22.9]} 21... Rfd8 {[%clk 0:00:17.8]} 22. Bxb7 {[%clk 0:00:17.4]} 22... Rxb7
{[%clk 0:00:17.5]} 23. Bxe5 {[%clk 0:00:13.9]} 23... Nxe5 {[%clk 0:00:16.7]} 24.
Rxe5 {[%clk 0:00:09.2]} 24... Rbd7 {[%clk 0:00:11.6]} 25. Rde1 {[%clk
0:00:05.8]} 25... Qxe5 {[%clk 0:00:08.3]} 26. Rxe5 {[%clk 0:00:06.2]} 26... Rd1+
{[%clk 0:00:08]} 27. Re1 {[%clk 0:00:05.6]} 27... Rxb1 {[%clk 0:00:08.3]} 28.
Rxb1 {[%clk 0:00:06.5]} 28... Rb8 {[%clk 0:00:07.1]} 29. Kf1 {[%clk 0:00:05.5]}
29... Kf8 {[%clk 0:00:07.2]} 30. Rb4 {[%clk 0:00:05.8]} 30... Ke7 {[%clk
0:00:05]} 31. a4 {[%clk 0:00:06.2]} 31... Kd6 {[%clk 0:00:05.1]} 32. axb5 {[%clk
0:00:03.5]} 32... Kc5 {[%clk 0:00:04.6]} 33. Rb1 {[%clk 0:00:03.8]} 33... Rxb5
{[%clk 0:00:04.2]} 34. Rc1 {[%clk 0:00:04]} 34... Rb6 {[%clk 0:00:04.6]} 35. Ke2
{[%clk 0:00:04.3]} 35... Rd6 {[%clk 0:00:05.3]} 36. f3 {[%clk 0:00:04.6]} 36...
Kb4 {[%clk 0:00:05.6]} 37. Rb1+ {[%clk 0:00:05.2]} 37... Kc3 {[%clk 0:00:05.8]}
38. Rc1+ {[%clk 0:00:05.9]} 38... Kb3 {[%clk 0:00:06.2]} 39. Rb1+ {[%clk
0:00:04.9]} 39... Kc2 {[%clk 0:00:06.5]} 40. Rb7 {[%clk 0:00:05]} 40... Re6+
{[%clk 0:00:06.8]} 41. Kf2 {[%clk 0:00:05]} 41... Rf6 {[%clk 0:00:07.5]} 42. Rc7
{[%clk 0:00:04.8]} 42... c3 {[%clk 0:00:07.8]} 43. g4 {[%clk 0:00:05.4]} 43...
Kb2 {[%clk 0:00:07.8]} 44. Ke3 {[%clk 0:00:05.4]} 44... c2 {[%clk 0:00:07.1]}
45. Rb7+ {[%clk 0:00:05]} 45... Kc3 {[%clk 0:00:06.6]} 46. Rc7+ {[%clk
0:00:04.9]} 46... Kb3 {[%clk 0:00:06.6]} 47. Rb7+ {[%clk 0:00:05.4]} 47... Kc3
{[%clk 0:00:06.6]} 48. Rc7+ {[%clk 0:00:05.9]} 48... Kb2 {[%clk 0:00:07]} 49.
Rb7+ {[%clk 0:00:06.5]} 49... Kc1 {[%clk 0:00:07.3]} 50. g5 {[%clk 0:00:07]}
50... Re6+ {[%clk 0:00:07.2]} 51. Kf2 {[%clk 0:00:06.1]} 51... Kd2 {[%clk
0:00:07.1]} 52. Rd7+ {[%clk 0:00:06.8]} 52... Kc3 {[%clk 0:00:07.4]} 53. Rc7+
{[%clk 0:00:07.6]} 53... Kb3 {[%clk 0:00:07.6]} 54. Rb7+ {[%clk 0:00:08.2]}
54... Ka3 {[%clk 0:00:07.8]} 55. Ra7+ {[%clk 0:00:08]} 55... Kb2 {[%clk
0:00:07.9]} 56. Rb7+ {[%clk 0:00:08.5]} 56... Ka1 {[%clk 0:00:08.1]} 57. Ra7+
{[%clk 0:00:08.5]} 57... Kb1 {[%clk 0:00:08.3]} 58. Rb7+ {[%clk 0:00:09.4]}
58... Kc1 {[%clk 0:00:08.4]} 59. f4 {[%clk 0:00:09.1]} 59... Rd6 {[%clk
0:00:07.7]} 60. Ke3 {[%clk 0:00:08.5]} 60... Kd1 {[%clk 0:00:07.2]} 0-1

[Event "Late-Titled-Tuesday-Blitz-January-16-2024"]
[Site "Chess.com"]
[Date "2024.01.16"]
[Round "8"]
[White "AmanteDeMoi"]
[Black "wild3000"]
[Result "1-0"]
[WhiteElo "2588"]
[BlackElo "2398"]
[TimeControl "180+1"]
[EndTime "15:29:37 PST"]
[Termination "AmanteDeMoi won by checkmate"]

1. Nf3 {[%clk 0:03:00.9]} 1... d5 {[%clk 0:02:44.8]} 2. e3 {[%clk 0:03:01]} 2...
e6 {[%clk 0:02:44.9]} 3. b3 {[%clk 0:03:01.4]} 3... Nf6 {[%clk 0:02:45.5]} 4.
Bb2 {[%clk 0:03:01.9]} 4... Be7 {[%clk 0:02:46.1]} 5. Be2 {[%clk 0:03:02.4]}
5... O-O {[%clk 0:02:46.3]} 6. O-O {[%clk 0:03:03.3]} 6... b6 {[%clk 0:02:46.6]}
7. c4 {[%clk 0:03:03.8]} 7... Bb7 {[%clk 0:02:47.2]} 8. d3 {[%clk 0:02:59.5]}
8... c5 {[%clk 0:02:47.3]} 9. Nbd2 {[%clk 0:02:59.9]} 9... Nc6 {[%clk
0:02:47.7]} 10. a3 {[%clk 0:02:51.6]} 10... Re8 {[%clk 0:02:47]} 11. Qc2 {[%clk
0:02:51.2]} 11... Bf8 {[%clk 0:02:44.2]} 12. Ne5 {[%clk 0:02:49.1]} 12... Nxe5
{[%clk 0:02:44.1]} 13. Bxe5 {[%clk 0:02:50]} 13... Nd7 {[%clk 0:02:44]} 14. Bb2
{[%clk 0:02:50.5]} 14... e5 {[%clk 0:02:35.8]} 15. cxd5 {[%clk 0:02:44.8]} 15...
Bxd5 {[%clk 0:02:35.7]} 16. Bf3 {[%clk 0:02:42.7]} 16... Nf6 {[%clk 0:02:35.1]}
17. Bxd5 {[%clk 0:02:41.5]} 17... Qxd5 {[%clk 0:02:36]} 18. e4 {[%clk
0:02:35.6]} 18... Qd7 {[%clk 0:02:17.9]} 19. Nc4 {[%clk 0:02:32]} 19... Bd6
{[%clk 0:02:14.9]} 20. f4 {[%clk 0:02:23.5]} 20... exf4 {[%clk 0:02:00.2]} 21.
e5 {[%clk 0:02:08.7]} 21... Bxe5 {[%clk 0:01:44.5]} 22. Nxe5 {[%clk 0:02:03.5]}
22... Qf5 {[%clk 0:01:40.8]} 23. Rae1 {[%clk 0:01:56.3]} 23... Nd5 {[%clk
0:01:34.6]} 24. Qc4 {[%clk 0:01:46.6]} 24... Rad8 {[%clk 0:01:29.7]} 25. Nc6
{[%clk 0:01:35]} 25... Rc8 {[%clk 0:00:33.3]} 26. Nxa7 {[%clk 0:01:02.3]} 26...
Ra8 {[%clk 0:00:33.2]} 27. Bc1 {[%clk 0:00:49]} 27... g5 {[%clk 0:00:29.1]} 28.
Nb5 {[%clk 0:00:46.3]} 28... Red8 {[%clk 0:00:23.2]} 29. Qe4 {[%clk 0:00:43.7]}
29... Qf6 {[%clk 0:00:19.2]} 30. Rf2 {[%clk 0:00:39.2]} 30... Ra5 {[%clk
0:00:18.1]} 31. Bb2 {[%clk 0:00:39.1]} 31... Qg6 {[%clk 0:00:13.1]} 32. Qe5
{[%clk 0:00:36.4]} 32... f6 {[%clk 0:00:10.3]} 33. Qe6+ {[%clk 0:00:34.9]} 33...
Qf7 {[%clk 0:00:10.5]} 34. Qc6 {[%clk 0:00:18.7]} 34... Qd7 {[%clk 0:00:09.4]}
35. Qxd7 {[%clk 0:00:13.5]} 35... Rxd7 {[%clk 0:00:10.3]} 36. a4 {[%clk
0:00:12.9]} 36... Nb4 {[%clk 0:00:10.5]} 37. Bxf6 {[%clk 0:00:12.1]} 37... Nxd3
{[%clk 0:00:10]} 38. Rd1 {[%clk 0:00:10.1]} 38... Nxf2 {[%clk 0:00:06.9]} 39.
Rxd7 {[%clk 0:00:09.7]} 39... Ne4 {[%clk 0:00:07.8]} 40. Be5 {[%clk 0:00:06.2]}
40... Ra8 {[%clk 0:00:07.7]} 41. Nc7 {[%clk 0:00:06]} 41... Rc8 {[%clk
0:00:06.6]} 42. Nd5 {[%clk 0:00:05.6]} 42... c4 {[%clk 0:00:06.3]} 43. Ne7+
{[%clk 0:00:05.8]} 43... Kf7 {[%clk 0:00:06.4]} 44. Nxc8+ {[%clk 0:00:06.7]}
44... Ke6 {[%clk 0:00:07.3]} 45. Rd1 {[%clk 0:00:04.2]} 45... cxb3 {[%clk
0:00:06.8]} 46. Nxb6 {[%clk 0:00:04.2]} 46... Kxe5 {[%clk 0:00:06.6]} 47. Rb1
{[%clk 0:00:04.3]} 47... Kd4 {[%clk 0:00:06.1]} 48. Rxb3 {[%clk 0:00:04.2]}
48... Kc5 {[%clk 0:00:06.6]} 49. a5 {[%clk 0:00:04]} 49... g4 {[%clk 0:00:07.5]}
50. a6 {[%clk 0:00:03.9]} 50... Nd2 {[%clk 0:00:08.2]} 51. Rc3+ {[%clk
0:00:03.9]} 51... Kd4 {[%clk 0:00:08]} 52. a7 {[%clk 0:00:03.8]} 52... Kxc3
{[%clk 0:00:08.2]} 53. a8=Q {[%clk 0:00:04.3]} 53... Ne4 {[%clk 0:00:09.1]} 54.
Qxe4 {[%clk 0:00:04.4]} 54... Kd2 {[%clk 0:00:09.8]} 55. Nc4+ {[%clk 0:00:04.4]}
55... Kc1 {[%clk 0:00:09.5]} 56. Qxf4+ {[%clk 0:00:05.3]} 56... Kc2 {[%clk
0:00:09.1]} 57. Qd2+ {[%clk 0:00:06.1]} 57... Kb3 {[%clk 0:00:09.1]} 58. Qb2+
{[%clk 0:00:07]} 58... Kxc4 {[%clk 0:00:09.3]} 59. Qg7 {[%clk 0:00:07.8]} 59...
Kd3 {[%clk 0:00:09.3]} 60. Qxh7+ {[%clk 0:00:08.7]} 60... Ke3 {[%clk 0:00:09.2]}
61. g3 {[%clk 0:00:09.3]} 61... Kf3 {[%clk 0:00:09.4]} 62. Qd3# {[%clk
0:00:09.9]} 1-0

[Event "Late-Titled-Tuesday-Blitz-January-16-2024"]
[Site "Chess.com"]
[Date "2024.01.16"]
[Round "8"]
[White "Bauman_Guy"]
[Black "GoltsevDmitry2000"]
[Result "0-1"]
[WhiteElo "2890"]
[BlackElo "2756"]
[TimeControl "180+1"]
[EndTime "15:29:39 PST"]
[Termination "GoltsevDmitry2000 won by resignation"]

1. e4 {[%clk 0:03:00.9]} 1... e6 {[%clk 0:03:00.3]} 2. d4 {[%clk 0:03:00.9]}
2... d5 {[%clk 0:03:01]} 3. Nc3 {[%clk 0:03:01.5]} 3... Nf6 {[%clk 0:02:59.3]}
4. Bg5 {[%clk 0:03:01.1]} 4... dxe4 {[%clk 0:02:59]} 5. Nxe4 {[%clk 0:03:01]}
5... Be7 {[%clk 0:02:59.5]} 6. Nxf6+ {[%clk 0:03:01.3]} 6... Bxf6 {[%clk
0:02:59.5]} 7. Bxf6 {[%clk 0:03:01.8]} 7... Qxf6 {[%clk 0:03:00.4]} 8. Nf3
{[%clk 0:03:02.4]} 8... O-O {[%clk 0:03:00.5]} 9. Qd3 {[%clk 0:03:02.3]} 9...
Nc6 {[%clk 0:02:59.3]} 10. Qe3 {[%clk 0:03:02.1]} 10... Nb4 {[%clk 0:02:53.3]}
11. Qd2 {[%clk 0:02:58.9]} 11... a5 {[%clk 0:02:49]} 12. c3 {[%clk 0:02:58.1]}
12... Nd5 {[%clk 0:02:46.1]} 13. Bc4 {[%clk 0:02:49.9]} 13... Nf4 {[%clk
0:02:37.3]} 14. O-O {[%clk 0:02:45.4]} 14... b6 {[%clk 0:02:37.1]} 15. Qe3
{[%clk 0:02:24]} 15... Bb7 {[%clk 0:02:34.7]} 16. Rfe1 {[%clk 0:02:23.3]} 16...
Nh3+ {[%clk 0:01:55.8]} 17. Kf1 {[%clk 0:02:21.9]} 17... Bxf3 {[%clk 0:01:55.2]}
18. Qxf3 {[%clk 0:02:17.3]} 18... Qxf3 {[%clk 0:01:55.2]} 19. gxf3 {[%clk
0:02:18.2]} 19... Nf4 {[%clk 0:01:54.7]} 20. Re4 {[%clk 0:02:17.7]} 20... g5
{[%clk 0:01:55]} 21. Ke1 {[%clk 0:01:47.5]} 21... Rad8 {[%clk 0:01:53.5]} 22.
Kd2 {[%clk 0:01:41.2]} 22... Kg7 {[%clk 0:01:47.7]} 23. h4 {[%clk 0:01:31.6]}
23... h6 {[%clk 0:01:47.5]} 24. Rg1 {[%clk 0:01:31.2]} 24... Kf6 {[%clk
0:01:47.2]} 25. Ke3 {[%clk 0:01:19.6]} 25... Rg8 {[%clk 0:01:40.6]} 26. a4
{[%clk 0:01:11.3]} 26... Rg7 {[%clk 0:00:59.5]} 27. Bb3 {[%clk 0:00:59.6]} 27...
Rgg8 {[%clk 0:00:58.5]} 28. Bc4 {[%clk 0:00:50.8]} 28... Rg7 {[%clk 0:00:57.9]}
29. b4 {[%clk 0:00:49.9]} 29... axb4 {[%clk 0:00:51.2]} 30. cxb4 {[%clk
0:00:50.8]} 30... Ra8 {[%clk 0:00:51]} 31. hxg5+ {[%clk 0:00:48.6]} 31... hxg5
{[%clk 0:00:49.3]} 32. Ra1 {[%clk 0:00:49.2]} 32... Rh7 {[%clk 0:00:48]} 33. a5
{[%clk 0:00:46.3]} 33... bxa5 {[%clk 0:00:45.4]} 34. bxa5 {[%clk 0:00:46]} 34...
Rhh8 {[%clk 0:00:34.3]} 35. Re5 {[%clk 0:00:39.8]} 35... Rhb8 {[%clk 0:00:14.7]}
36. Rb5 {[%clk 0:00:36.5]} 36... Rd8 {[%clk 0:00:14.9]} 37. a6 {[%clk
0:00:31.6]} 37... Ng2+ {[%clk 0:00:11.7]} 38. Kd3 {[%clk 0:00:31.9]} 38... Nf4+
{[%clk 0:00:11.8]} 39. Kc3 {[%clk 0:00:32]} 39... Ke7 {[%clk 0:00:05.7]} 40. a7
{[%clk 0:00:30.7]} 40... Kd6 {[%clk 0:00:05.9]} 41. Ra6+ {[%clk 0:00:30.1]}
41... c6 {[%clk 0:00:05.5]} 42. Rbb6 {[%clk 0:00:27]} 42... Rdc8 {[%clk
0:00:06]} 43. Kb4 {[%clk 0:00:24.6]} 43... Rc7 {[%clk 0:00:06.4]} 44. Bb5 {[%clk
0:00:19.3]} 44... Nd5+ {[%clk 0:00:05.9]} 45. Ka5 {[%clk 0:00:08.3]} 45... Nxb6
{[%clk 0:00:06.8]} 46. Kxb6 {[%clk 0:00:08.6]} 46... cxb5 {[%clk 0:00:06.1]} 47.
Kxb5+ {[%clk 0:00:09.5]} 47... Kd5 {[%clk 0:00:05.5]} 48. Kb6 {[%clk 0:00:08.3]}
48... Rcxa7 {[%clk 0:00:05.6]} 49. Rxa7 {[%clk 0:00:08.2]} 49... Rxa7 {[%clk
0:00:06.5]} 50. Kxa7 {[%clk 0:00:08.7]} 50... Kxd4 {[%clk 0:00:07.4]} 51. Kb7
{[%clk 0:00:09.2]} 51... Kd3 {[%clk 0:00:06.9]} 52. Kc6 {[%clk 0:00:09.7]} 52...
Ke2 {[%clk 0:00:07.4]} 53. Kd6 {[%clk 0:00:10.6]} 53... Kxf3 {[%clk 0:00:08]}
54. Ke7 {[%clk 0:00:11.5]} 54... Kxf2 {[%clk 0:00:08.6]} 55. Kxf7 {[%clk
0:00:12.4]} 55... g4 {[%clk 0:00:09.2]} 56. Kf6 {[%clk 0:00:13.3]} 56... g3
{[%clk 0:00:09.9]} 0-1

[Event "Late-Titled-Tuesday-Blitz-January-16-2024"]
[Site "Chess.com"]
[Date "2024.01.16"]
[Round "8"]
[White "Fh2411"]
[Black "cassoulet"]
[Result "1-0"]
[WhiteElo "2618"]
[BlackElo "2759"]
[TimeControl "180+1"]
[EndTime "15:29:43 PST"]
[Termination "Fh2411 won by checkmate"]

1. d4 {[%clk 0:03:00.9]} 1... Nf6 {[%clk 0:02:59.5]} 2. Nf3 {[%clk 0:03:00.3]}
2... g6 {[%clk 0:02:59.8]} 3. Bf4 {[%clk 0:02:54.1]} 3... Bg7 {[%clk 0:02:59.7]}
4. e3 {[%clk 0:02:54.7]} 4... O-O {[%clk 0:03:00.3]} 5. h3 {[%clk 0:02:54.1]}
5... d6 {[%clk 0:03:00.4]} 6. Be2 {[%clk 0:02:53.8]} 6... Nbd7 {[%clk
0:03:01.1]} 7. O-O {[%clk 0:02:54.3]} 7... c5 {[%clk 0:03:01.8]} 8. c3 {[%clk
0:02:54.2]} 8... a6 {[%clk 0:03:02.3]} 9. a4 {[%clk 0:02:53.7]} 9... b6 {[%clk
0:03:02.4]} 10. Na3 {[%clk 0:02:51.4]} 10... Bb7 {[%clk 0:03:01.6]} 11. Bh2
{[%clk 0:02:51.1]} 11... Qc7 {[%clk 0:02:58.2]} 12. Qb3 {[%clk 0:02:49]} 12...
Bc6 {[%clk 0:02:56.2]} 13. Rfd1 {[%clk 0:02:46.3]} 13... Qb7 {[%clk 0:02:51.7]}
14. Nc4 {[%clk 0:02:28.7]} 14... Bd5 {[%clk 0:02:46.7]} 15. dxc5 {[%clk
0:02:16.5]} 15... Nxc5 {[%clk 0:02:39.9]} 16. Qxb6 {[%clk 0:02:01.9]} 16... Qc8
{[%clk 0:02:18.8]} 17. Nxd6 {[%clk 0:00:45]} 17... exd6 {[%clk 0:02:13.6]} 18.
Bxd6 {[%clk 0:00:45.9]} 18... Nfd7 {[%clk 0:01:26.2]} 19. Qb4 {[%clk 0:00:37]}
19... a5 {[%clk 0:01:26.1]} 20. Qa3 {[%clk 0:00:31.4]} 20... Bb3 {[%clk
0:01:21]} 21. Rd2 {[%clk 0:00:20.3]} 21... Re8 {[%clk 0:01:16]} 22. Bb5 {[%clk
0:00:20.3]} 22... Be6 {[%clk 0:00:38]} 23. Nd4 {[%clk 0:00:19.3]} 23... Ne4
{[%clk 0:00:35.3]} 24. Rdd1 {[%clk 0:00:11.7]} 24... Nxd6 {[%clk 0:00:31.8]} 25.
Qxd6 {[%clk 0:00:12.6]} 25... Bf8 {[%clk 0:00:31.9]} 26. Qg3 {[%clk 0:00:11.5]}
26... Ra7 {[%clk 0:00:30.4]} 27. Nxe6 {[%clk 0:00:11.4]} 27... Rxe6 {[%clk
0:00:31.3]} 28. Rd3 {[%clk 0:00:09]} 28... Ne5 {[%clk 0:00:30.9]} 29. Rd5 {[%clk
0:00:09.1]} 29... Nc4 {[%clk 0:00:25.5]} 30. b3 {[%clk 0:00:07.5]} 30... Nb6
{[%clk 0:00:24.9]} 31. Rd3 {[%clk 0:00:07.6]} 31... Qc7 {[%clk 0:00:18.6]} 32.
Qg4 {[%clk 0:00:05.6]} 32... h5 {[%clk 0:00:16.6]} 33. Qf3 {[%clk 0:00:04.7]}
33... Bg7 {[%clk 0:00:15.8]} 34. Rad1 {[%clk 0:00:04]} 34... Ra8 {[%clk
0:00:13.3]} 35. c4 {[%clk 0:00:04]} 35... Rf8 {[%clk 0:00:12.7]} 36. Qe2 {[%clk
0:00:01.8]} 36... Be5 {[%clk 0:00:12.7]} 37. Qd2 {[%clk 0:00:02.3]} 37... Qa7
{[%clk 0:00:11.8]} 38. Qc2 {[%clk 0:00:01.1]} 38... Bb8 {[%clk 0:00:09.5]} 39.
Qd2 {[%clk 0:00:01.5]} 39... Qc7 {[%clk 0:00:09.4]} 40. f4 {[%clk 0:00:02.2]}
40... Qc5 {[%clk 0:00:08.5]} 41. Qf2 {[%clk 0:00:02]} 41... Re7 {[%clk 0:00:03]}
42. Kh1 {[%clk 0:00:02.5]} 42... Kg7 {[%clk 0:00:02.2]} 43. Qf3 {[%clk 0:00:03]}
43... Re6 {[%clk 0:00:02.9]} 44. e4 {[%clk 0:00:03.4]} 44... Rf6 {[%clk
0:00:03.8]} 45. e5 {[%clk 0:00:03]} 45... Bxe5 {[%clk 0:00:04.2]} 46. Rd5 {[%clk
0:00:01.4]} 46... Bxf4 {[%clk 0:00:05.1]} 47. Rxc5 {[%clk 0:00:01.6]} 47... Bd6
{[%clk 0:00:05.5]} 48. Qd5 {[%clk 0:00:02]} 48... Bxc5 {[%clk 0:00:05.7]} 49.
Qxc5 {[%clk 0:00:02.9]} 49... Rc8 {[%clk 0:00:05.4]} 50. Qd4 {[%clk 0:00:03.5]}
50... Rc7 {[%clk 0:00:05.7]} 51. Rf1 {[%clk 0:00:04]} 51... Rc6 {[%clk
0:00:05.3]} 52. Bxc6 {[%clk 0:00:04]} 52... Nd7 {[%clk 0:00:05.8]} 53. Bxd7
{[%clk 0:00:04.1]} 53... Kh6 {[%clk 0:00:06.7]} 54. Qxf6 {[%clk 0:00:04.3]}
54... h4 {[%clk 0:00:06.7]} 55. Qxh4+ {[%clk 0:00:04.1]} 55... Kg7 {[%clk
0:00:07.1]} 56. Qf6+ {[%clk 0:00:04.7]} 56... Kh6 {[%clk 0:00:07.4]} 57. Qxf7
{[%clk 0:00:05.3]} 57... Kh5 {[%clk 0:00:08.3]} 58. Bg4+ {[%clk 0:00:04.6]}
58... Kh4 {[%clk 0:00:09.2]} 59. Qh7+ {[%clk 0:00:04.5]} 59... Kg3 {[%clk
0:00:09.5]} 60. Bd1 {[%clk 0:00:04.5]} 60... g5 {[%clk 0:00:10.4]} 61. Qg6
{[%clk 0:00:04.7]} 61... g4 {[%clk 0:00:11.3]} 62. Qxg4# {[%clk 0:00:05]} 1-0

[Event "Late-Titled-Tuesday-Blitz-January-16-2024"]
[Site "Chess.com"]
[Date "2024.01.16"]
[Round "8"]
[White "Nick12772"]
[Black "C_K_G"]
[Result "1/2-1/2"]
[WhiteElo "2332"]
[BlackElo "2090"]
[TimeControl "180+1"]
[EndTime "15:29:52 PST"]
[Termination "Game drawn by repetition"]

1. Nf3 {[%clk 0:03:00.9]} 1... d5 {[%clk 0:02:58.5]} 2. g3 {[%clk 0:03:01.8]}
2... e6 {[%clk 0:02:58.7]} 3. Bg2 {[%clk 0:03:01.9]} 3... Nf6 {[%clk 0:02:59.1]}
4. O-O {[%clk 0:03:02.8]} 4... c5 {[%clk 0:02:59.4]} 5. d4 {[%clk 0:03:03.1]}
5... cxd4 {[%clk 0:02:59.6]} 6. Nxd4 {[%clk 0:03:04]} 6... a6 {[%clk 0:02:57.4]}
7. c4 {[%clk 0:03:04.1]} 7... Be7 {[%clk 0:02:53.4]} 8. Nc3 {[%clk 0:03:03]}
8... dxc4 {[%clk 0:02:50.8]} 9. Qa4+ {[%clk 0:02:33.2]} 9... Nbd7 {[%clk
0:02:43]} 10. Rd1 {[%clk 0:02:10.4]} 10... O-O {[%clk 0:02:28.1]} 11. Qxc4
{[%clk 0:02:07.1]} 11... Rb8 {[%clk 0:02:14.9]} 12. Nb3 {[%clk 0:01:31.9]} 12...
b5 {[%clk 0:02:05.5]} 13. Qd3 {[%clk 0:01:26.3]} 13... Bb7 {[%clk 0:01:57.1]}
14. Bf4 {[%clk 0:01:25.6]} 14... e5 {[%clk 0:01:54.3]} 15. Bxb7 {[%clk
0:01:17.8]} 15... Rxb7 {[%clk 0:01:36.1]} 16. Be3 {[%clk 0:01:11.9]} 16... Qc8
{[%clk 0:01:21.7]} 17. Rac1 {[%clk 0:01:07.1]} 17... Rc7 {[%clk 0:01:19.9]} 18.
Qf5 {[%clk 0:01:04.8]} 18... g6 {[%clk 0:00:52.8]} 19. Qh3 {[%clk 0:01:04.3]}
19... h5 {[%clk 0:00:45.5]} 20. Bh6 {[%clk 0:01:03.1]} 20... Rd8 {[%clk
0:00:43.8]} 21. Bg5 {[%clk 0:00:47.4]} 21... Nf8 {[%clk 0:00:40.1]} 22. Qxc8
{[%clk 0:00:44.5]} 22... Rdxc8 {[%clk 0:00:41]} 23. Bxf6 {[%clk 0:00:35.4]}
23... Bxf6 {[%clk 0:00:39.7]} 24. Nd5 {[%clk 0:00:33.7]} 24... Rxc1 {[%clk
0:00:39]} 25. Nxf6+ {[%clk 0:00:33.9]} 25... Kg7 {[%clk 0:00:39.3]} 26. Nxh5+
{[%clk 0:00:32.6]} 26... gxh5 {[%clk 0:00:38.6]} 27. Rxc1 {[%clk 0:00:33.4]}
27... Rxc1+ {[%clk 0:00:30.4]} 28. Nxc1 {[%clk 0:00:34.3]} 28... f5 {[%clk
0:00:29.7]} 29. Nd3 {[%clk 0:00:34.4]} 29... Kf6 {[%clk 0:00:28.9]} 30. Nc5
{[%clk 0:00:33.1]} 30... a5 {[%clk 0:00:29]} 31. Kg2 {[%clk 0:00:32.3]} 31...
Ng6 {[%clk 0:00:26]} 32. Nb7 {[%clk 0:00:32.1]} 32... a4 {[%clk 0:00:24.1]} 33.
Nd6 {[%clk 0:00:32.4]} 33... b4 {[%clk 0:00:22.5]} 34. Nc4 {[%clk 0:00:30.9]}
34... Ne7 {[%clk 0:00:20.6]} 35. Nb6 {[%clk 0:00:30.8]} 35... a3 {[%clk
0:00:20.5]} 36. bxa3 {[%clk 0:00:30.7]} 36... bxa3 {[%clk 0:00:21]} 37. Nc4
{[%clk 0:00:31.1]} 37... Nd5 {[%clk 0:00:21.3]} 38. Nxa3 {[%clk 0:00:31.6]}
38... Nc3 {[%clk 0:00:21.7]} 39. Nc4 {[%clk 0:00:28.6]} 39... Nxa2 {[%clk
0:00:22]} 40. Ne3 {[%clk 0:00:27.7]} 40... Nc1 {[%clk 0:00:21]} 41. Kf1 {[%clk
0:00:27.6]} 41... f4 {[%clk 0:00:21.3]} 42. Ng2 {[%clk 0:00:27.6]} 42... Kf5
{[%clk 0:00:20.8]} 43. Nh4+ {[%clk 0:00:27.6]} 43... Kg4 {[%clk 0:00:20.9]} 44.
Nf3 {[%clk 0:00:27.8]} 44... e4 {[%clk 0:00:20.8]} 45. Ne5+ {[%clk 0:00:24.7]}
45... Kf5 {[%clk 0:00:20.9]} 46. Nc6 {[%clk 0:00:23.3]} 46... f3 {[%clk
0:00:20]} 47. exf3 {[%clk 0:00:23]} 47... exf3 {[%clk 0:00:20.9]} 48. Nd4+
{[%clk 0:00:23.6]} 48... Kg4 {[%clk 0:00:21.7]} 49. h3+ {[%clk 0:00:21.9]} 49...
Kxh3 {[%clk 0:00:21.8]} 50. Nxf3 {[%clk 0:00:22.6]} 50... Kg4 {[%clk 0:00:22.1]}
51. Kg2 {[%clk 0:00:22.3]} 51... Ne2 {[%clk 0:00:21.4]} 52. Nh2+ {[%clk
0:00:22.1]} 52... Kg5 {[%clk 0:00:21.2]} 53. Nf3+ {[%clk 0:00:22.2]} 53... Kg4
{[%clk 0:00:21.1]} 54. Ng1 {[%clk 0:00:22.9]} 54... Nd4 {[%clk 0:00:20]} 55. Kf1
{[%clk 0:00:18.6]} 55... h4 {[%clk 0:00:18.7]} 56. gxh4 {[%clk 0:00:16.1]} 56...
Kxh4 {[%clk 0:00:18.8]} 57. Kg2 {[%clk 0:00:15.9]} 57... Kg4 {[%clk 0:00:18.7]}
58. Nh3 {[%clk 0:00:15.7]} 58... Nf3 {[%clk 0:00:16.9]} 59. Ng1 {[%clk
0:00:10.2]} 59... Nxg1 {[%clk 0:00:16.8]} 60. Kxg1 {[%clk 0:00:11.1]} 60... Kf3
{[%clk 0:00:17.4]} 61. Kf1 {[%clk 0:00:11.8]} 61... Kf4 {[%clk 0:00:17.5]} 62.
Ke2 {[%clk 0:00:12.1]} 62... Ke4 {[%clk 0:00:17.6]} 63. Kd2 {[%clk 0:00:12.7]}
63... Kf3 {[%clk 0:00:17.7]} 64. Ke1 {[%clk 0:00:13.5]} 64... Kf4 {[%clk
0:00:18.2]} 65. Kf1 {[%clk 0:00:13.4]} 65... Kf3 {[%clk 0:00:18.5]} 66. Kg1
{[%clk 0:00:14.1]} 66... Kf4 {[%clk 0:00:18.8]} 67. Kg2 {[%clk 0:00:14.8]} 67...
Kg4 {[%clk 0:00:19.3]} 68. f3+ {[%clk 0:00:15.3]} 68... Kf4 {[%clk 0:00:19.8]}
69. Kf2 {[%clk 0:00:16.2]} 69... Kf5 {[%clk 0:00:20]} 70. Kf1 {[%clk 0:00:16.9]}
70... Kf4 {[%clk 0:00:20.3]} 71. Ke2 {[%clk 0:00:17.7]} 71... Kf5 {[%clk
0:00:20.9]} 72. Ke3 {[%clk 0:00:18.1]} 72... Ke5 {[%clk 0:00:21.3]} 73. Kd3
{[%clk 0:00:18.2]} 73... Kf4 {[%clk 0:00:21.7]} 74. Ke2 {[%clk 0:00:18.7]} 74...
Kf5 {[%clk 0:00:22.2]} 75. Kf2 {[%clk 0:00:19.2]} 75... Kf4 {[%clk 0:00:22.6]}
76. Kg2 {[%clk 0:00:19.6]} 76... Kf5 {[%clk 0:00:23.1]} 77. Kg3 {[%clk
0:00:18.6]} 77... Kg5 {[%clk 0:00:23.6]} 78. Kf2 {[%clk 0:00:18.4]} 78... Kf4
{[%clk 0:00:24]} 79. Ke2 {[%clk 0:00:17.7]} 1/2-1/2